fUSD/lending_fUSD_20250629
["ID","MTS","AMOUNT","RATE_DAILY","PERIOD"]
[368454681,1751182269717,-490.0,0.00028164,3]
[368454682,1751182269727,-490.0,0.00028164,3]
[368454683,1751182269736,-490.0,0.00028164,3]
[368454684,1751182269745,-490.0,0.00028164,3]
[368454685,1751182269756,-490.0,0.00028164,3]
[368454686,1751182269766,-490.0,0.00028164,3]
[368454687,1751182269775,-490.0,0.00028164,3]
[368454688,1751182269784,-964.19,0.00028164,3]
[368454689,1751182269794,-2951.27,0.00028164,3]
[368454690,1751182269805,-2756.58,0.00028164,3]
[368454691,1751182269815,-3180.03,0.00028164,3]
[368454692,1751182269824,-6822.42,0.00028164,3]
[368454693,1751182269833,-1477.92,0.00028164,3]
[368454694,1751182269842,-2515.35,0.00028164,3]
[368454695,1751182269852,-2328.17,0.00028164,3]
[368454696,1751182269862,-590.04,0.00028164,3]
[368454697,1751182269871,-3777.15,0.00028164,3]
[368454698,1751182269881,-2074.62,0.00028164,3]
[368454699,1751182269891,-4278.36,0.00028164,3]
[368454700,1751182269900,-4385.06,0.00028164,3]
[368454701,1751182269910,-2735.66,0.00028164,3]
[368454702,1751182269919,-2135.46,0.00028164,3]
[368454703,1751182269928,-4138.99,0.00028164,3]
[368454704,1751182269938,-4694.82,0.00028164,3]
[368454705,1751182269947,-3835.69,0.00028164,3]
[368454706,1751182269956,-3587.26,0.00028164,3]
[368454707,1751182269965,-1142.37,0.00028165,3]
[368454708,1751182269975,-859.15,0.00028165,3]
[368454709,1751182269985,-490.0,0.00028165,3]
[368454710,1751182269994,-686.69,0.00028165,3]
[368454711,1751182270004,-490.0,0.00028165,3]
[368454712,1751182270013,-507.62423087,0.00028165,3]
[368454713,1751182270023,-1243.41,0.00028165,3]
[368454714,1751182270033,-610.42,0.00028165,3]
[368454715,1751182270043,-490.0,0.00028165,3]
[368454716,1751182270052,-490.0,0.00028165,3]
[368454717,1751182270061,-6449.94,0.00028165,3]
[368454718,1751182270071,-2428.46,0.00028165,3]
[368454719,1751182270080,-2302.8,0.00028165,3]
[368454720,1751182270090,-219.32,0.00028165,2]
[368454721,1751182270100,-2237.95,0.00028165,3]
[368454722,1751182270110,-1270.62,0.00028165,3]
[368454723,1751182270119,-413.23,0.00028165,3]
[368454724,1751182270129,-3063.2,0.00028165,3]
[368454725,1751182270139,-542.56,0.00028165,2]
[368454726,1751182270148,-3728.98,0.00028165,3]
[368454727,1751182270158,-1956.9,0.00028165,3]
[368454728,1751182270167,-490.0,0.00028165,3]
[368454729,1751182270180,-3352.59,0.00028165,3]
[368454730,1751182270190,-2398.93,0.00028165,3]
[368454731,1751182270200,-760.07,0.00028165,3]
[368454732,1751182270210,-1679.51,0.00028165,3]
[368454733,1751182270222,-1300.72,0.00028165,3]
[368454734,1751182270232,-1231.97,0.00028165,3]
[368454735,1751182270242,-4027.43,0.00028165,3]
[368454736,1751182270254,-1699.97,0.00028165,3]
[368454737,1751182270264,-3154.44,0.00028165,3]
[368454738,1751182270274,-2249.68,0.00028165,3]
[368454739,1751182270283,-2816.41,0.00028165,3]
[368454740,1751182270293,-500.0,0.00028165,3]
[368454741,1751182270303,-2391.75,0.00028165,3]
[368454742,1751182270312,-29872.53,0.00028165,3]
[368454743,1751182270323,-2458.27,0.00028166,3]
[368454744,1751182270335,-929.38,0.00028166,3]
[368454745,1751182270344,-3630.15,0.00028166,3]
[368454746,1751182270354,-2325.15,0.00028166,3]
[368454747,1751182270363,-16257.32,0.00028166,3]
[368454748,1751182270373,-7724.83,0.00028166,3]
[368454749,1751182270384,-2149.5,0.00028166,3]
[368454750,1751182270393,-5677.04,0.00028166,3]
[368454751,1751182270402,-2531.52,0.00028166,3]
[368454752,1751182270412,-6800.29,0.00028166,3]
[368454753,1751182270421,-3276.18,0.00028166,3]
[368454754,1751182270431,-3692.76,0.00028166,3]
[368454755,1751182270440,-14547.11,0.00028166,3]
[368454756,1751182270449,-4651.63,0.00028166,3]
[368454757,1751182270458,-5615.45,0.00028166,3]
[368454758,1751182270468,-2445.2,0.00028166,3]
[368454759,1751182270478,-1449.77,0.00028166,3]
[368454760,1751182270487,-6377.64,0.00028166,3]
[368454761,1751182270497,-9534.23,0.00028166,3]
[368454762,1751182270507,-965.3,0.00028166,3]
[368454763,1751182270516,-5998.34,0.00028166,3]
[368454764,1751182270526,-2020.83,0.00028166,3]
[368454765,1751182270535,-3627.03,0.00028166,3]
[368454766,1751182270545,-3212.39,0.00028166,3]
[368454767,1751182270555,-1870.81,0.00028166,3]
[368454768,1751182270564,-3110.6,0.00028166,3]
[368454769,1751182270573,-2825.64,0.00028166,3]
[368454770,1751182270583,-3598.8,0.00028166,3]
[368454771,1751182270592,-159.72974989,0.00028173,2]
[368454772,1751182270602,-160.83605704,0.00028173,5]
[368454773,1751182270611,-159.72975798,0.00028173,5]
[368454774,1751182270620,-159.727904,0.00028173,2]
[368454775,1751182270630,-504.53923254,0.00028173,5]
[368454776,1751182270639,-502.37246911,0.00028173,5]
[368454777,1751182270648,-498.22426185,0.00028173,5]
[368454778,1751182270658,-381.74382364,0.00028173,5]
[368454779,1751182270668,-502.48346111,0.00028173,5]
[368454780,1751182270677,-501.37972873,0.00028173,5]
[368454781,1751182270687,-159.727904,0.00028173,5]
[368454782,1751182270696,-500.0,0.00028173,3]
[368454783,1751182270706,-161.69126146,0.00028173,5]
[368454784,1751182270816,-159.727904,0.00028173,2]
[368454785,1751182270826,-160.51874416,0.00028173,5]
[368454786,1751182270835,-159.72974989,0.00028173,2]
[368454787,1751182270845,-159.81540117,0.00028173,5]
[368454788,1751182270855,-500.0,0.00028173,5]
[368454789,1751182270864,-159.72974978,0.00028173,5]
[368454790,1751182270874,-158.0,0.00028173,2]
[368454791,1751182270883,-159.727904,0.00028173,2]
[368454792,1751182270892,-500.0,0.00028173,5]
[368454793,1751182270902,-160.72806071,0.00028173,5]
[368454794,1751182270912,-160.010898,0.00028173,2]
[368454795,1751182270921,-159.727904,0.00028173,2]
[368454796,1751182270930,-500.0,0.00028173,5]
[368454797,1751182270941,-500.0,0.00028173,5]
[368454798,1751182270953,-552.18551164,0.00028173,5]
[368454799,1751182270963,-500.0,0.00028173,5]
[368454800,1751182270973,-453.30319219,0.00028173,5]
[368454801,1751182270982,-481.84897218,0.00028173,5]
[368454802,1751182270992,-506.84287581,0.00028173,5]
[368454803,1751182271001,-273.34954719,0.00028173,5]
[368454804,1751182271011,-500.0,0.00028173,5]
[368454805,1751182271020,-238.37635197,0.00028173,5]
[368454806,1751182271030,-500.0,0.00028173,5]
[368454807,1751182271040,-500.0,0.00028173,5]
[368454808,1751182271050,-500.0,0.00028173,5]
[368454809,1751182271059,-160.34924671,0.00028173,5]
[368454810,1751182271069,-213.14955858,0.00028173,5]
[368454811,1751182271078,-513.90456754,0.00028173,5]
[368454812,1751182271087,-154.03844298,0.00028173,5]
[368454813,1751182271096,-500.0,0.00028173,5]
[368454814,1751182271105,-577.89840193,0.00028177,2]
[368454815,1751182271115,-185.49347121,0.00028177,2]
[368454816,1751182271125,-1700.74,0.0002818,3]
[368454817,1751182271134,-2676.17245662,0.00028187,2]
[368454818,1751182271144,-2487.02,0.00028191,3]
[368454819,1751182271154,-1845.49,0.00028191,3]
[368454820,1751182271164,-2632.01,0.00028191,3]
[368454821,1751182271174,-2875.39,0.00028191,3]
[368454822,1751182271184,-2256.12,0.00028191,3]
[368454823,1751182271194,-1543.17,0.00028191,3]
[368454824,1751182271204,-490.0,0.00028191,3]
[368454825,1751182271213,-1270.42,0.00028191,3]
[368454826,1751182271223,-2664.48,0.00028191,3]
[368454827,1751182271233,-2024.82,0.00028191,3]
[368454828,1751182271243,-3096.41,0.00028191,3]
[368454829,1751182271252,-490.0,0.00028191,3]
[368454830,1751182271262,-853.51,0.00028191,3]
[368454831,1751182271271,-1001.71,0.00028191,3]
[368454832,1751182271281,-1011.42,0.00028191,3]
[368454833,1751182271290,-1167.67,0.00028191,3]
[368454834,1751182271300,-1965.76,0.00028191,3]
[368454835,1751182271310,-2274.31,0.00028191,3]
[368454836,1751182271320,-2475.8,0.00028191,3]
[368454837,1751182271329,-490.0,0.00028191,3]
[368454838,1751182271339,-2942.82,0.00028191,3]
[368454839,1751182271349,-1378.0,0.00028191,3]
[368454840,1751182271360,-490.0,0.00028191,3]
[368454841,1751182271370,-490.0,0.00028191,3]
[368454842,1751182271380,-1999.68,0.00028191,3]
[368454843,1751182271389,-2348.9,0.00028191,3]
[368454844,1751182271399,-1936.54,0.00028191,3]
[368454845,1751182271408,-2004.24,0.00028191,3]
[368454846,1751182271418,-490.0,0.00028191,3]
[368454847,1751182271428,-740.11,0.00028191,3]
[368454848,1751182271438,-687.27,0.00028191,3]
[368454849,1751182271447,-490.0,0.00028191,3]
[368454850,1751182271456,-923.859,0.00028202,19]
[368454851,1751182271466,-176.81704095,0.00028202,19]
[368454852,1751182271475,-1700.74,0.00028202,3]
[368454853,1751182271484,-1032.24,0.00028219,3]
[368454854,1751182271494,-986.88,0.00028219,3]
[368454855,1751182271503,-2426.13,0.00028219,3]
[368454856,1751182271512,-2321.5,0.00028219,3]
[368454857,1751182271522,-540.05,0.00028219,3]
[368454858,1751182271531,-524.65,0.00028219,3]
[368454859,1751182271540,-2244.43,0.00028219,3]
[368454860,1751182271550,-2131.08,0.00028219,3]
[368454861,1751182271559,-490.0,0.00028219,3]
[368454862,1751182271568,-2868.24,0.00028219,3]
[368454863,1751182271578,-552.44,0.00028219,3]
[368454864,1751182271587,-490.0,0.00028219,3]
[368454865,1751182271597,-2130.69,0.00028219,3]
[368454866,1751182271607,-656.57,0.00028219,3]
[368454867,1751182271616,-490.0,0.00028219,3]
[368454868,1751182271626,-2139.8,0.00028219,3]
[368454869,1751182271635,-1096.93,0.00028219,3]
[368454870,1751182271644,-490.0,0.00028219,2]
[368454871,1751182271655,-572.04,0.00028219,3]
[368454872,1751182271665,-490.0,0.00028219,3]
[368454873,1751182271673,-490.0,0.00028219,3]
[368454874,1751182271683,-490.0,0.00028219,3]
[368454875,1751182271692,-777.88,0.00028219,3]
[368454876,1751182271702,-490.0,0.00028219,3]
[368454877,1751182271711,-159.32,0.00028219,5]
[368454878,1751182271721,-490.0,0.00028219,5]
[368454879,1751182271730,-662.11310313,0.00028221,5]
[368454880,1751182271740,-502.3980493,0.00028221,5]
[368454881,1751182271749,-1000.0,0.00028221,5]
[368454882,1751182271759,-1000.0,0.00028221,5]
[368454883,1751182271769,-1000.0,0.00028221,5]
[368454884,1751182271778,-382.05658395,0.00028241,2]
[368454885,1751182271787,-964.76709245,0.00028247,2]
[368454886,1751182271797,-269.64092971,0.00028261,2]
[368454887,1751182271806,-500.0,0.00028275,3]
[368454888,1751182271815,-501.12,0.00028276,3]
[368454889,1751182271825,-490.0,0.00028276,3]
[368454890,1751182271835,-490.0,0.00028276,3]
[368454891,1751182271844,-490.0,0.00028276,3]
[368454892,1751182271853,-898.79,0.00028276,3]
[368454893,1751182271863,-490.0,0.00028276,3]
[368454894,1751182271872,-802.69,0.00028276,3]
[368454895,1751182271883,-709.67,0.00028276,3]
[368454896,1751182271893,-490.0,0.00028276,3]
[368454897,1751182271902,-490.0,0.00028276,3]
[368454898,1751182271912,-490.0,0.00028276,3]
[368454899,1751182271921,-490.0,0.00028276,3]
[368454900,1751182271931,-557.87,0.00028276,3]
[368454901,1751182271940,-490.0,0.00028276,3]
[368454902,1751182271950,-490.0,0.00028276,3]
[368454903,1751182271959,-490.0,0.00028276,3]
[368454904,1751182271968,-912.98,0.00028276,3]
[368454905,1751182271978,-584.25728743,0.00028276,3]
[368454906,1751182271988,-866.34,0.00028276,3]
[368454907,1751182271998,-600.24,0.00028276,3]
[368454908,1751182272007,-490.0,0.00028276,3]
[368454909,1751182272017,-500.23,0.00028276,3]
[368454910,1751182272027,-1027.74,0.00028276,3]
[368454911,1751182272036,-490.0,0.00028276,3]
[368454912,1751182272046,-490.0,0.00028276,3]
[368454913,1751182272056,-490.0,0.00028276,3]
[368454914,1751182272066,-1039.95,0.00028276,3]
[368454915,1751182272076,-490.0,0.00028276,3]
[368454916,1751182272086,-490.0,0.00028276,3]
[368454917,1751182272095,-490.0,0.00028276,3]
[368454918,1751182272104,-490.0,0.00028276,3]
[368454919,1751182272114,-742.48,0.00028276,3]
[368454920,1751182272123,-490.0,0.00028276,3]
[368454921,1751182272132,-586.15,0.00028276,3]
[368454922,1751182272142,-490.0,0.00028276,3]
[368454923,1751182272152,-490.0,0.00028276,3]
[368454924,1751182272161,-490.0,0.00028276,3]
[368454925,1751182272174,-586.74,0.00028276,3]
[368454926,1751182272187,-493.53,0.00028276,3]
[368454927,1751182272196,-530.39792276,0.00028276,3]
[368454928,1751182272205,-1232.64,0.00028276,3]
[368454929,1751182272216,-490.0,0.00028276,3]
[368454930,1751182272225,-727.1,0.00028276,3]
[368454931,1751182272235,-490.0,0.00028276,3]
[368454932,1751182272244,-646.31,0.00028276,3]
[368454933,1751182272254,-490.0,0.00028276,3]
[368454934,1751182272264,-490.0,0.00028276,3]
[368454935,1751182272273,-490.0,0.00028276,3]
[368454936,1751182272283,-490.2,0.00028276,3]
[368454937,1751182272292,-490.0,0.00028276,3]
[368454938,1751182272302,-490.0,0.00028276,3]
[368454939,1751182272311,-490.0,0.00028276,3]
[368454940,1751182272320,-490.0,0.00028276,3]
[368454941,1751182272329,-503.22,0.00028276,3]
[368454942,1751182272338,-490.0,0.00028276,3]
[368454943,1751182272348,-490.0,0.00028276,3]
[368454944,1751182272357,-470.83804454,0.00028276,3]
[368454945,1751182272366,-966.34,0.00028276,3]
[368454946,1751182272375,-490.0,0.00028276,3]
[368454947,1751182272384,-1194.77,0.00028276,3]
[368454948,1751182272393,-490.0,0.00028276,3]
[368454949,1751182272404,-575.97,0.00028276,3]
[368454950,1751182272413,-490.0,0.00028276,3]
[368454951,1751182272422,-490.0,0.00028276,3]
[368454952,1751182272431,-490.0,0.00028276,3]
[368454953,1751182272440,-490.0,0.00028276,3]
[368454954,1751182272450,-490.0,0.00028276,3]
[368454955,1751182272459,-490.0,0.00028276,3]
[368454956,1751182272468,-490.0,0.00028276,3]
[368454957,1751182272477,-490.0,0.00028276,3]
[368454958,1751182272487,-490.0,0.00028276,3]
[368454959,1751182272496,-490.0,0.00028276,3]
[368454960,1751182272505,-490.0,0.00028276,3]
[368454961,1751182272515,-490.0,0.00028276,3]
[368454962,1751182272524,-490.0,0.00028276,3]
[368454963,1751182272534,-490.0,0.00028276,3]
[368454964,1751182272543,-526.13,0.00028276,3]
[368454965,1751182272553,-490.0,0.00028276,3]
[368454966,1751182272563,-490.0,0.00028276,3]
[368454967,1751182272572,-490.0,0.00028276,3]
[368454968,1751182272581,-490.0,0.00028276,3]
[368454969,1751182272591,-490.0,0.00028276,3]
[368454970,1751182272600,-490.0,0.00028276,3]
[368454971,1751182272609,-698.09,0.00028276,3]
[368454972,1751182272618,-490.0,0.00028276,3]
[368454973,1751182272627,-1019.81,0.00028276,3]
[368454974,1751182272639,-490.0,0.00028276,3]
[368454975,1751182272648,-490.0,0.00028276,3]
[368454976,1751182272657,-490.0,0.00028276,3]
[368454977,1751182272666,-490.0,0.00028276,3]
[368454978,1751182272675,-490.07,0.00028276,3]
[368454979,1751182272684,-490.0,0.00028276,3]
[368454980,1751182272693,-490.0,0.00028276,3]
[368454981,1751182272702,-490.0,0.00028276,3]
[368454982,1751182272712,-490.0,0.00028276,3]
[368454983,1751182272722,-490.0,0.00028276,3]
[368454984,1751182272731,-492.31896629,0.00028276,3]
[368454985,1751182272740,-490.0,0.00028276,3]
[368454986,1751182272749,-490.0,0.00028276,3]
[368454987,1751182272758,-490.0,0.00028276,3]
[368454988,1751182272767,-490.0,0.00028276,3]
[368454989,1751182272776,-490.0,0.00028276,3]
[368454990,1751182272785,-490.0,0.00028276,3]
[368454991,1751182272796,-524.08,0.00028276,3]
[368454992,1751182272805,-573.76,0.00028276,3]
[368454993,1751182272814,-490.0,0.00028276,3]
[368454994,1751182272823,-554.26,0.00028276,3]
[368454995,1751182272832,-490.0,0.00028276,3]
[368454996,1751182272841,-490.0,0.00028276,3]
[368454997,1751182272850,-1209.03,0.00028276,3]
[368454998,1751182272860,-490.0,0.00028276,3]
[368454999,1751182272869,-490.0,0.00028276,3]
[368455000,1751182272879,-544.18,0.00028276,3]
[368455001,1751182272887,-490.0,0.00028276,3]
[368455002,1751182272897,-942.07,0.00028276,3]
[368455003,1751182272907,-1044.0,0.00028276,3]
[368455004,1751182272915,-591.82,0.00028276,3]
[368455005,1751182272925,-490.0,0.00028276,3]
[368455006,1751182272934,-490.0,0.00028276,3]
[368455007,1751182272943,-490.0,0.00028276,3]
[368455008,1751182272952,-490.0,0.00028276,3]
[368455009,1751182272961,-490.0,0.00028276,3]
[368455010,1751182272971,-490.0,0.00028276,3]
[368455011,1751182272980,-227.77,0.00028276,3]
[368455012,1751182272989,-490.0,0.00028276,3]
[368455013,1751182272999,-1035.27,0.00028276,3]
[368455014,1751182273008,-490.0,0.00028276,3]
[368455015,1751182273018,-736.8,0.00028276,3]
[368455016,1751182273027,-519.55,0.00028276,3]
[368455017,1751182273037,-490.0,0.00028276,3]
[368455018,1751182273047,-490.0,0.00028276,3]
[368455019,1751182273056,-716.28,0.00028276,3]
[368455020,1751182273066,-490.0,0.00028276,3]
[368455021,1751182273075,-490.0,0.00028276,3]
[368455022,1751182273085,-490.0,0.00028276,3]
[368455023,1751182273094,-505.44,0.00028276,3]
[368455024,1751182273104,-490.0,0.00028276,3]
[368455025,1751182273114,-490.0,0.00028276,3]
[368455026,1751182273123,-490.0,0.00028276,3]
[368455027,1751182273133,-490.0,0.00028276,3]
[368455028,1751182273142,-490.0,0.00028276,3]
[368455029,1751182273152,-490.0,0.00028276,3]
[368455030,1751182273161,-490.0,0.00028276,3]
[368455031,1751182273172,-650.79,0.00028276,3]
[368455032,1751182273183,-490.0,0.00028276,3]
[368455033,1751182273193,-587.52,0.00028276,3]
[368455034,1751182273202,-490.0,0.00028276,3]
[368455035,1751182273212,-490.0,0.00028276,3]
[368455036,1751182273221,-569.44670232,0.00028276,3]
[368455037,1751182273230,-865.26,0.00028276,3]
[368455038,1751182273240,-549.5249184,0.00028276,3]
[368455039,1751182273249,-490.0,0.00028276,3]
[368455040,1751182273258,-490.0,0.00028276,3]
[368455041,1751182273268,-670.56,0.00028276,3]
[368455042,1751182273277,-490.0,0.00028276,3]
[368455043,1751182273286,-670.95,0.00028276,3]
[368455044,1751182273295,-490.0,0.00028276,3]
[368455045,1751182273304,-490.0,0.00028276,3]
[368455046,1751182273313,-490.0,0.00028276,3]
[368455047,1751182273322,-642.41,0.00028276,3]
[368455048,1751182273332,-523.7,0.00028276,3]
[368455049,1751182273340,-490.0,0.00028276,3]
[368455050,1751182273350,-627.99,0.00028276,3]
[368455051,1751182273359,-490.0,0.00028276,3]
[368455052,1751182273368,-490.0,0.00028276,3]
[368455053,1751182273377,-490.0,0.00028276,3]
[368455054,1751182273386,-490.0,0.00028276,3]
[368455055,1751182273395,-490.0,0.00028276,3]
[368455056,1751182273404,-607.19,0.00028276,3]
[368455057,1751182273414,-490.0,0.00028276,3]
[368455058,1751182273424,-1648.68,0.00028276,3]
[368455059,1751182273433,-490.0,0.00028276,3]
[368455060,1751182273443,-490.0,0.00028276,3]
[368455061,1751182273451,-490.0,0.00028276,3]
[368455062,1751182273460,-604.32,0.00028276,3]
[368455063,1751182273470,-490.0,0.00028276,3]
[368455064,1751182273479,-490.0,0.00028276,3]
[368455065,1751182273488,-490.0,0.00028276,3]
[368455066,1751182273497,-490.0,0.00028276,3]
[368455067,1751182273507,-490.0,0.00028276,3]
[368455068,1751182273516,-490.0,0.00028276,3]
[368455069,1751182273526,-590.12,0.00028276,3]
[368455070,1751182273535,-490.0,0.00028276,3]
[368455071,1751182273545,-490.0,0.00028276,3]
[368455072,1751182273554,-1206.53,0.00028276,3]
[368455073,1751182273563,-490.0,0.00028276,3]
[368455074,1751182273572,-490.0,0.00028276,3]
[368455075,1751182273581,-958.57,0.00028276,3]
[368455076,1751182273590,-490.0,0.00028276,3]
[368455077,1751182273599,-490.0,0.00028276,3]
[368455078,1751182273608,-490.0,0.00028276,3]
[368455079,1751182273618,-490.0,0.00028276,3]
[368455080,1751182273627,-445.16791782,0.00028276,3]
[368455081,1751182273636,-490.0,0.00028276,3]
[368455082,1751182273646,-490.0,0.00028276,3]
[368455083,1751182273655,-490.0,0.00028276,3]
[368455084,1751182273664,-542.56,0.00028276,2]
[368455085,1751182273674,-490.0,0.00028276,3]
[368455086,1751182273683,-490.0,0.00028276,3]
[368455087,1751182273693,-1449.54,0.00028276,3]
[368455088,1751182273703,-490.0,0.00028276,3]
[368455089,1751182273712,-490.0,0.00028276,3]
[368455090,1751182273722,-939.34,0.00028276,3]
[368455091,1751182273731,-490.0,0.00028276,3]
[368455092,1751182273741,-165.46705004,0.00028276,3]
[368455093,1751182273751,-1375.29,0.00028276,3]
[368455094,1751182273761,-540.72,0.00028276,3]
[368455095,1751182273771,-1541.71,0.00028276,3]
[368455096,1751182273781,-490.0,0.00028276,3]
[368455097,1751182273790,-983.84,0.00028276,3]
[368455098,1751182273799,-490.0,0.00028276,3]
[368455099,1751182273809,-2229.85,0.00028276,3]
[368455100,1751182273819,-490.0,0.00028276,3]
[368455101,1751182273828,-894.46,0.00028276,3]
[368455102,1751182273838,-443.10400813,0.00028276,3]
[368455103,1751182273848,-490.0,0.00028276,3]
[368455104,1751182273857,-490.0,0.00028276,3]
[368455105,1751182273867,-490.0,0.00028276,3]
[368455106,1751182273878,-490.0,0.00028276,3]
[368455107,1751182273888,-490.0,0.00028276,3]
[368455108,1751182273898,-490.0,0.00028276,3]
[368455109,1751182273908,-702.8,0.00028276,3]
[368455110,1751182273917,-490.0,0.00028276,3]
[368455111,1751182273927,-1665.12,0.00028276,3]
[368455112,1751182273937,-490.0,0.00028276,3]
[368455113,1751182273947,-495.44,0.00028276,3]
[368455114,1751182273956,-490.0,0.00028276,3]
[368455115,1751182273966,-490.0,0.00028276,3]
[368455116,1751182273975,-931.32,0.00028276,3]
[368455117,1751182273985,-490.0,0.00028276,3]
[368455118,1751182273994,-490.0,0.00028276,3]
[368455119,1751182274004,-258.45582483,0.00028276,3]
[368455120,1751182274014,-490.0,0.00028276,3]
[368455121,1751182274023,-1071.27,0.00028276,3]
[368455122,1751182274034,-490.0,0.00028276,3]
[368455123,1751182274043,-490.0,0.00028276,3]
[368455124,1751182274053,-4961.98,0.00028276,3]
[368455125,1751182274063,-1624.35,0.00028276,3]
[368455126,1751182274073,-490.0,0.00028276,3]
[368455127,1751182274084,-490.0,0.00028276,3]
[368455128,1751182274093,-490.0,0.00028276,3]
[368455129,1751182274103,-499.66127289,0.00028276,3]
[368455130,1751182274114,-490.0,0.00028276,3]
[368455131,1751182274123,-347.3923683,0.00028276,3]
[368455132,1751182274133,-666.17,0.00028276,3]
[368455133,1751182274143,-490.0,0.00028276,3]
[368455134,1751182274152,-490.0,0.00028276,3]
[368455135,1751182274162,-490.0,0.00028276,3]
[368455136,1751182274174,-490.0,0.00028276,3]
[368455137,1751182274186,-490.0,0.00028276,3]
[368455138,1751182274196,-5301.8,0.00028276,3]
[368455139,1751182274206,-1354.79,0.00028276,3]
[368455140,1751182274215,-787.97,0.00028276,3]
[368455141,1751182274227,-490.0,0.00028276,3]
[368455142,1751182274237,-490.0,0.00028276,3]
[368455143,1751182274247,-490.0,0.00028276,3]
[368455144,1751182274259,-490.0,0.00028276,3]
[368455145,1751182274270,-500.0,0.00028276,3]
[368455146,1751182274280,-5764.48,0.00028276,3]
[368455147,1751182274290,-885.71,0.00028276,3]
[368455148,1751182274300,-490.0,0.00028276,3]
[368455149,1751182274309,-490.0,0.00028276,3]
[368455150,1751182274319,-490.0,0.00028276,3]
[368455151,1751182274329,-490.0,0.00028276,3]
[368455152,1751182274339,-4557.27,0.00028276,3]
[368455153,1751182274349,-490.0,0.00028276,3]
[368455154,1751182274360,-490.0,0.00028276,3]
[368455155,1751182274370,-490.0,0.00028276,3]
[368455156,1751182274381,-490.0,0.00028276,3]
[368455157,1751182274391,-1080.13,0.00028276,3]
[368455158,1751182274401,-490.0,0.00028277,3]
[368455159,1751182274411,-490.0,0.00028277,3]
[368455160,1751182274420,-554.83690679,0.00028277,3]
[368455161,1751182274430,-422.11270134,0.00028277,3]
[368455162,1751182274440,-490.0,0.00028277,3]
[368455163,1751182274449,-490.0,0.00028277,3]
[368455164,1751182274459,-490.0,0.00028277,3]
[368455165,1751182274468,-490.0,0.00028277,3]
[368455166,1751182274478,-1244.31,0.00028277,3]
[368455167,1751182274487,-490.0,0.00028277,3]
[368455168,1751182274498,-490.0,0.00028277,3]
[368455169,1751182274508,-1158.84,0.00028277,3]
[368455170,1751182274519,-659.68,0.00028277,3]
[368455171,1751182274528,-490.0,0.00028277,3]
[368455172,1751182274538,-490.0,0.00028277,3]
[368455173,1751182274548,-490.0,0.00028277,3]
[368455174,1751182274558,-490.0,0.00028277,3]
[368455175,1751182274568,-490.0,0.00028277,3]
[368455176,1751182274578,-490.0,0.00028277,3]
[368455177,1751182274588,-490.0,0.00028277,3]
[368455178,1751182274598,-1130.82,0.00028277,3]
[368455179,1751182274608,-631.06788628,0.00028277,3]
[368455180,1751182274618,-169.13029899,0.00028277,3]